[Event "Early-Titled-Tuesday-Blitz-April-02-2024"]
[Site "Chess.com"]
[Date "2024.04.02"]
[Round "7"]
[White "rezamahdavi2008"]
[Black "stolencandy13"]
[Result "1-0"]
[WhiteElo "2906"]
[BlackElo "2672"]
[TimeControl "180+1"]
[EndTime "9:15:23 PDT"]
[Termination "rezamahdavi2008 won by checkmate"]

1. e4 {[%clk 0:03:00.9]} 1... c6 {[%clk 0:02:59.6]} 2. d4 {[%clk 0:03:00.7]}
2... d5 {[%clk 0:03:00.5]} 3. e5 {[%clk 0:03:01.1]} 3... Bf5 {[%clk 0:03:00.4]}
4. Nf3 {[%clk 0:02:51.3]} 4... e6 {[%clk 0:03:00.5]} 5. Be2 {[%clk 0:02:49.8]}
5... Bg6 {[%clk 0:03:00.7]} 6. O-O {[%clk 0:02:45.1]} 6... Nh6 {[%clk
0:03:01.4]} 7. Nbd2 {[%clk 0:02:43.6]} 7... Nd7 {[%clk 0:02:58.1]} 8. Nb3 {[%clk
0:02:43.4]} 8... a6 {[%clk 0:02:57]} 9. a4 {[%clk 0:02:43.5]} 9... Rc8 {[%clk
0:02:57.1]} 10. a5 {[%clk 0:02:33.1]} 10... Nf5 {[%clk 0:02:54.3]} 11. c3 {[%clk
0:02:28.9]} 11... Be7 {[%clk 0:02:52.7]} 12. g4 {[%clk 0:02:29.2]} 12... Nh4
{[%clk 0:02:52.3]} 13. Nxh4 {[%clk 0:02:29.9]} 13... Bxh4 {[%clk 0:02:52.8]} 14.
f4 {[%clk 0:02:30.8]} 14... f5 {[%clk 0:02:27.6]} 15. Bd3 {[%clk 0:02:27.8]}
15... O-O {[%clk 0:02:17.6]} 16. Be3 {[%clk 0:02:25.3]} 16... Qe8 {[%clk
0:02:09.2]} 17. g5 {[%clk 0:02:19.9]} 17... Bh5 {[%clk 0:02:05.9]} 18. Be2
{[%clk 0:02:20.2]} 18... Bg6 {[%clk 0:02:01.6]} 19. Nd2 {[%clk 0:02:19]} 19...
h6 {[%clk 0:01:55.7]} 20. Nf3 {[%clk 0:02:18.9]} 20... hxg5 {[%clk 0:01:54.7]}
21. fxg5 {[%clk 0:02:19.8]} 21... f4 {[%clk 0:01:47.6]} 22. Bd2 {[%clk
0:02:20.4]} 22... Qe7 {[%clk 0:01:41.2]} 23. Nxh4 {[%clk 0:02:18]} 23... Qxg5+
{[%clk 0:01:41.8]} 24. Ng2 {[%clk 0:02:18.6]} 24... Be4 {[%clk 0:01:39.8]} 25.
Bg4 {[%clk 0:02:12.5]} 25... Rce8 {[%clk 0:01:22.2]} 26. Bxf4 {[%clk 0:02:09.9]}
26... Rxf4 {[%clk 0:01:17]} 27. Nxf4 {[%clk 0:02:05.5]} 27... Rf8 {[%clk
0:01:10.2]} 28. Ng2 {[%clk 0:01:54.4]} 28... c5 {[%clk 0:00:35.9]} 29. Bxe6+
{[%clk 0:01:49]} 29... Kh7 {[%clk 0:00:31]} 30. Qg4 {[%clk 0:01:49.4]} 30...
Rxf1+ {[%clk 0:00:21.7]} 31. Rxf1 {[%clk 0:01:49]} 31... Qe7 {[%clk 0:00:21.3]}
32. Qh5# {[%clk 0:01:46.3]} 1-0

[Event "Early-Titled-Tuesday-Blitz-April-02-2024"]
[Site "Chess.com"]
[Date "2024.04.02"]
[Round "7"]
[White "gorgeous1083"]
[Black "toninhojit"]
[Result "0-1"]
[WhiteElo "2221"]
[BlackElo "2494"]
[TimeControl "180+1"]
[EndTime "9:15:39 PDT"]
[Termination "toninhojit won by resignation"]

1. d4 {[%clk 0:03:00.9]} 1... Nf6 {[%clk 0:02:57.2]} 2. c4 {[%clk 0:03:01.5]}
2... c5 {[%clk 0:02:57.2]} 3. d5 {[%clk 0:03:01.4]} 3... e6 {[%clk 0:02:57.9]}
4. Nc3 {[%clk 0:03:01.7]} 4... exd5 {[%clk 0:02:58.8]} 5. cxd5 {[%clk
0:03:01.7]} 5... d6 {[%clk 0:02:59.7]} 6. Bf4 {[%clk 0:03:02.1]} 6... a6 {[%clk
0:02:58.8]} 7. a4 {[%clk 0:03:01.6]} 7... g6 {[%clk 0:02:59.2]} 8. Nf3 {[%clk
0:03:01.5]} 8... Bg7 {[%clk 0:02:59.8]} 9. h3 {[%clk 0:03:01.8]} 9... O-O {[%clk
0:03:00]} 10. e4 {[%clk 0:03:02.1]} 10... Re8 {[%clk 0:02:58.8]} 11. Nd2 {[%clk
0:03:01.9]} 11... Nh5 {[%clk 0:02:53.3]} 12. Be3 {[%clk 0:03:00]} 12... f5
{[%clk 0:02:54]} 13. exf5 {[%clk 0:02:53.4]} 13... Rxe3+ {[%clk 0:02:31.7]} 14.
fxe3 {[%clk 0:02:51.6]} 14... Qh4+ {[%clk 0:02:31.8]} 15. Ke2 {[%clk 0:02:42.2]}
15... Ng3+ {[%clk 0:02:28.9]} 16. Kd3 {[%clk 0:02:37.8]} 16... Bxf5+ {[%clk
0:02:19.6]} 17. e4 {[%clk 0:02:35.3]} 17... Nxh1 {[%clk 0:02:20.1]} 18. Qf3
{[%clk 0:02:28.3]} 18... Nf2+ {[%clk 0:02:07.5]} 19. Ke2 {[%clk 0:02:26.7]}
19... Bxc3 {[%clk 0:02:05.9]} 20. bxc3 {[%clk 0:02:16.7]} 20... Nxe4 {[%clk
0:02:03.5]} 21. Nxe4 {[%clk 0:02:11.5]} 21... Qxe4+ {[%clk 0:02:04.4]} 22. Qxe4
{[%clk 0:02:08.2]} 22... Bxe4 {[%clk 0:02:05.3]} 23. c4 {[%clk 0:02:06.8]} 23...
Nd7 {[%clk 0:02:03.2]} 24. Ke3 {[%clk 0:02:05.8]} 24... Re8 {[%clk 0:02:02.4]}
25. Kf4 {[%clk 0:02:02.4]} 25... h6 {[%clk 0:01:54.5]} 26. h4 {[%clk 0:02:00.4]}
26... Bf5 {[%clk 0:01:47.8]} 27. Ra3 {[%clk 0:01:51.7]} 27... Re4+ {[%clk
0:01:46.6]} 28. Kg3 {[%clk 0:01:50.4]} 28... Rg4+ {[%clk 0:01:46.7]} 29. Kf2
{[%clk 0:01:47]} 29... Rxh4 {[%clk 0:01:45.9]} 30. g3 {[%clk 0:01:44]} 30... Rd4
{[%clk 0:01:45.5]} 31. Rb3 {[%clk 0:01:43.1]} 31... b6 {[%clk 0:01:45.3]} 32.
Be2 {[%clk 0:01:37.7]} 32... a5 {[%clk 0:01:45.1]} 33. Rb2 {[%clk 0:01:35.7]}
33... h5 {[%clk 0:01:45.2]} 34. Rb3 {[%clk 0:01:35.5]} 34... Rd2 {[%clk
0:01:45.2]} 35. Ke3 {[%clk 0:01:35.3]} 35... Ra2 {[%clk 0:01:45.1]} 36. Kf4
{[%clk 0:01:30]} 36... Kg7 {[%clk 0:01:43.8]} 37. Re3 {[%clk 0:01:30.1]} 37...
Ne5 {[%clk 0:01:37.7]} 38. Bxh5 {[%clk 0:01:21.9]} 38... Rf2+ {[%clk 0:01:29.4]}
39. Bf3 {[%clk 0:01:12.8]} 39... Kf6 {[%clk 0:01:24.8]} 40. g4 {[%clk
0:01:01.1]} 40... Bxg4 {[%clk 0:01:25.2]} 0-1

[Event "Early-Titled-Tuesday-Blitz-April-02-2024"]
[Site "Chess.com"]
[Date "2024.04.02"]
[Round "7"]
[White "ReadySkate"]
[Black "the_chess_child"]
[Result "0-1"]
[WhiteElo "2597"]
[BlackElo "2828"]
[TimeControl "180+1"]
[EndTime "9:15:41 PDT"]
[Termination "the_chess_child won by resignation"]

1. d4 {[%clk 0:03:00.9]} 1... Nf6 {[%clk 0:02:59.6]} 2. c4 {[%clk 0:03:01.4]}
2... g6 {[%clk 0:03:00.1]} 3. Nc3 {[%clk 0:03:01.8]} 3... Bg7 {[%clk 0:03:00.7]}
4. e4 {[%clk 0:03:02.2]} 4... d6 {[%clk 0:03:01.3]} 5. Be2 {[%clk 0:03:02.8]}
5... O-O {[%clk 0:03:01.9]} 6. Bg5 {[%clk 0:03:03.5]} 6... c5 {[%clk 0:02:58.5]}
7. d5 {[%clk 0:03:03.5]} 7... h6 {[%clk 0:02:55.1]} 8. Bf4 {[%clk 0:03:00.1]}
8... a6 {[%clk 0:02:42.7]} 9. a4 {[%clk 0:02:57.5]} 9... Qa5 {[%clk 0:02:41.9]}
10. Qd2 {[%clk 0:02:56.2]} 10... b5 {[%clk 0:02:31]} 11. cxb5 {[%clk 0:02:54.1]}
11... axb5 {[%clk 0:02:31]} 12. Bxb5 {[%clk 0:02:53.8]} 12... Nbd7 {[%clk
0:02:15.8]} 13. Nf3 {[%clk 0:02:47.4]} 13... Nxe4 {[%clk 0:02:15]} 14. Nxe4
{[%clk 0:02:39.1]} 14... Qxb5 {[%clk 0:02:15.3]} 15. axb5 {[%clk 0:02:39.5]}
15... Rxa1+ {[%clk 0:02:15.5]} 16. Ke2 {[%clk 0:02:39.8]} 16... Rxh1 {[%clk
0:02:16.4]} 17. Qa5 {[%clk 0:02:40.4]} 17... Rb1 {[%clk 0:02:16.3]} 18. Nfd2
{[%clk 0:02:31.4]} 18... Rxb2 {[%clk 0:02:16.1]} 19. Kd1 {[%clk 0:02:17.1]}
19... Nf6 {[%clk 0:02:03.2]} 20. Nxf6+ {[%clk 0:02:09.3]} 20... Bxf6 {[%clk
0:02:04.1]} 21. Bxh6 {[%clk 0:02:07.7]} 21... Re8 {[%clk 0:01:58.7]} 22. b6
{[%clk 0:02:07.8]} 22... Bf5 {[%clk 0:01:53.4]} 23. Nc4 {[%clk 0:02:04.4]} 23...
Rb4 {[%clk 0:01:50.6]} 24. Ne3 {[%clk 0:02:01.7]} 24... Rb8 {[%clk 0:01:27.6]}
25. Nxf5 {[%clk 0:02:00]} 25... gxf5 {[%clk 0:01:28.5]} 26. Qa3 {[%clk
0:01:56.7]} 26... R8xb6 {[%clk 0:01:21.3]} 27. Qg3+ {[%clk 0:01:56.7]} 27... Rg4
{[%clk 0:01:21.6]} 28. Qf3 {[%clk 0:01:55.4]} 28... Rb1+ {[%clk 0:01:20.8]} 29.
Ke2 {[%clk 0:01:52.2]} 29... Rb2+ {[%clk 0:01:21.1]} 30. Kf1 {[%clk 0:01:39]}
30... Bd4 {[%clk 0:01:15.5]} 31. Be3 {[%clk 0:01:36.9]} 31... Bxe3 {[%clk
0:01:15.4]} 32. fxe3 {[%clk 0:01:25]} 32... Rgxg2 {[%clk 0:01:13.8]} 33. Qh5
{[%clk 0:01:10]} 33... Rxh2 {[%clk 0:01:08.8]} 34. Qg5+ {[%clk 0:01:07.9]} 34...
Kf8 {[%clk 0:01:09.4]} 35. Kg1 {[%clk 0:01:04.9]} 35... Rbg2+ {[%clk 0:01:09]}
36. Qxg2 {[%clk 0:01:05.4]} 36... Rxg2+ {[%clk 0:01:09.9]} 37. Kxg2 {[%clk
0:01:06.3]} 37... e6 {[%clk 0:01:10.2]} 38. Kf3 {[%clk 0:01:07.2]} 38... exd5
{[%clk 0:01:10.2]} 39. Kf4 {[%clk 0:01:07.6]} 39... Ke7 {[%clk 0:01:10.8]} 0-1

[Event "Early-Titled-Tuesday-Blitz-April-02-2024"]
[Site "Chess.com"]
[Date "2024.04.02"]
[Round "7"]
[White "rhwr"]
[Black "Kushch_Nikolai"]
[Result "0-1"]
[WhiteElo "2255"]
[BlackElo "2427"]
[TimeControl "180+1"]
[EndTime "9:15:43 PDT"]
[Termination "Kushch_Nikolai won by resignation"]

1. e4 {[%clk 0:02:56.8]} 1... c5 {[%clk 0:02:59.6]} 2. Nf3 {[%clk 0:02:57]} 2...
e6 {[%clk 0:02:59.5]} 3. d4 {[%clk 0:02:57.6]} 3... cxd4 {[%clk 0:02:58.9]} 4.
Nxd4 {[%clk 0:02:58.5]} 4... a6 {[%clk 0:02:58.1]} 5. c4 {[%clk 0:02:58.2]} 5...
Nf6 {[%clk 0:02:57.2]} 6. Nc3 {[%clk 0:02:58.5]} 6... Qc7 {[%clk 0:02:57.4]} 7.
Be3 {[%clk 0:02:55.6]} 7... b6 {[%clk 0:02:56.3]} 8. f3 {[%clk 0:02:53.3]} 8...
Bb7 {[%clk 0:02:56]} 9. Bd3 {[%clk 0:02:50.1]} 9... d6 {[%clk 0:02:56.3]} 10.
O-O {[%clk 0:02:50.3]} 10... Nbd7 {[%clk 0:02:56.4]} 11. Rc1 {[%clk 0:02:48.1]}
11... h5 {[%clk 0:02:55]} 12. b3 {[%clk 0:02:42.5]} 12... Be7 {[%clk 0:02:54.8]}
13. Bb1 {[%clk 0:02:34.5]} 13... Rc8 {[%clk 0:02:53.7]} 14. h3 {[%clk
0:02:29.3]} 14... h4 {[%clk 0:02:52]} 15. f4 {[%clk 0:02:24.3]} 15... Nc5 {[%clk
0:02:42.9]} 16. Qf3 {[%clk 0:02:14.2]} 16... Nfxe4 {[%clk 0:02:22.3]} 17. Nxe4
{[%clk 0:01:59.4]} 17... f5 {[%clk 0:02:21.1]} 18. Nxe6 {[%clk 0:01:58.7]} 18...
Nxe6 {[%clk 0:02:16.8]} 19. Rce1 {[%clk 0:01:41.7]} 19... O-O {[%clk 0:02:12.4]}
20. Qh5 {[%clk 0:01:29]} 20... fxe4 {[%clk 0:02:09.9]} 21. f5 {[%clk 0:01:28.8]}
21... Nc5 {[%clk 0:02:02.9]} 22. Qg6 {[%clk 0:01:09.1]} 22... Bf6 {[%clk
0:02:00.2]} 23. Rf4 {[%clk 0:00:56.9]} 23... Nd3 {[%clk 0:01:43.8]} 24. Bxd3
{[%clk 0:00:56.8]} 24... exd3 {[%clk 0:01:43.5]} 25. Rg4 {[%clk 0:00:56.6]}
25... Qf7 {[%clk 0:01:38.3]} 26. Rd1 {[%clk 0:00:40.1]} 26... Qxg6 {[%clk
0:01:37.2]} 27. fxg6 {[%clk 0:00:39.8]} 27... d5 {[%clk 0:01:23.5]} 28. Rxd3
{[%clk 0:00:38.1]} 28... dxc4 {[%clk 0:01:23.6]} 29. bxc4 {[%clk 0:00:38.3]}
29... Rc6 {[%clk 0:01:19.7]} 30. Rd7 {[%clk 0:00:35.3]} 30... Bc8 {[%clk
0:01:18.1]} 0-1

[Event "Early-Titled-Tuesday-Blitz-April-02-2024"]
[Site "Chess.com"]
[Date "2024.04.02"]
[Round "7"]
[White "azikom"]
[Black "Ralf61"]
[Result "1-0"]
[WhiteElo "2643"]
[BlackElo "2528"]
[TimeControl "180+1"]
[EndTime "9:15:49 PDT"]
[Termination "azikom won by resignation"]

1. d4 {[%clk 0:03:00.3]} 1... Nf6 {[%clk 0:02:58.8]} 2. Nf3 {[%clk 0:03:00]}
2... g6 {[%clk 0:02:58.2]} 3. Nc3 {[%clk 0:02:58.5]} 3... d5 {[%clk 0:02:56.8]}
4. Bf4 {[%clk 0:02:58.2]} 4... Bg7 {[%clk 0:02:54.9]} 5. Qd2 {[%clk 0:02:58]}
5... Ne4 {[%clk 0:02:49.1]} 6. Nxe4 {[%clk 0:02:54.9]} 6... dxe4 {[%clk
0:02:49.1]} 7. Ne5 {[%clk 0:02:55.5]} 7... Nd7 {[%clk 0:02:42.2]} 8. Nxd7 {[%clk
0:02:48.3]} 8... Bxd7 {[%clk 0:02:39.9]} 9. O-O-O {[%clk 0:02:48.5]} 9... O-O
{[%clk 0:02:29.5]} 10. f3 {[%clk 0:02:46.1]} 10... exf3 {[%clk 0:02:22.6]} 11.
exf3 {[%clk 0:02:45.8]} 11... Be6 {[%clk 0:02:20.9]} 12. d5 {[%clk 0:02:43.4]}
12... Bd7 {[%clk 0:02:14]} 13. Bh6 {[%clk 0:02:42.7]} 13... Bxh6 {[%clk
0:01:50.8]} 14. Qxh6 {[%clk 0:02:43.6]} 14... e6 {[%clk 0:01:43.8]} 15. dxe6
{[%clk 0:02:39.6]} 15... fxe6 {[%clk 0:01:43.6]} 16. Bc4 {[%clk 0:02:37.8]}
16... Qe7 {[%clk 0:01:41.6]} 17. Rhe1 {[%clk 0:02:36.4]} 17... Rae8 {[%clk
0:01:36.2]} 18. h4 {[%clk 0:02:27.4]} 18... Bc8 {[%clk 0:01:31.3]} 19. Bb3
{[%clk 0:02:07.8]} 19... Kh8 {[%clk 0:01:21.3]} 20. Re5 {[%clk 0:01:54.2]} 20...
Qg7 {[%clk 0:01:12.6]} 21. Qe3 {[%clk 0:01:40.4]} 21... Rf5 {[%clk 0:01:06.3]}
22. Re4 {[%clk 0:01:19]} 22... Qf6 {[%clk 0:00:56.6]} 23. Qxa7 {[%clk 0:01:17]}
23... Rf4 {[%clk 0:00:46.4]} 24. Qe3 {[%clk 0:01:14.7]} 24... Rxh4 {[%clk
0:00:41.7]} 25. Rxh4 {[%clk 0:01:13]} 25... Qxh4 {[%clk 0:00:41.5]} 26. Qe5+
{[%clk 0:01:13.7]} 26... Qf6 {[%clk 0:00:35.4]} 27. Qxf6+ {[%clk 0:01:07.8]} 1-0

[Event "Early-Titled-Tuesday-Blitz-April-02-2024"]
[Site "Chess.com"]
[Date "2024.04.02"]
[Round "7"]
[White "javirec"]
[Black "David_ATM"]
[Result "0-1"]
[WhiteElo "2274"]
[BlackElo "2417"]
[TimeControl "180+1"]
[EndTime "9:15:49 PDT"]
[Termination "David_ATM won on time"]

1. e4 {[%clk 0:03:00.9]} 1... e5 {[%clk 0:03:00.1]} 2. Nf3 {[%clk 0:02:57.8]}
2... Nc6 {[%clk 0:03:00.5]} 3. Bb5 {[%clk 0:02:58.1]} 3... a6 {[%clk 0:03:00.8]}
4. Ba4 {[%clk 0:02:58]} 4... Nf6 {[%clk 0:03:01.3]} 5. O-O {[%clk 0:02:57.8]}
5... Be7 {[%clk 0:03:01.7]} 6. Re1 {[%clk 0:02:56.6]} 6... b5 {[%clk 0:03:02.3]}
7. Bb3 {[%clk 0:02:55.8]} 7... O-O {[%clk 0:03:02.2]} 8. c3 {[%clk 0:02:56.1]}
8... d5 {[%clk 0:03:00.8]} 9. d4 {[%clk 0:02:54.5]} 9... dxe4 {[%clk 0:02:53.6]}
10. Nxe5 {[%clk 0:02:49.9]} 10... Nxe5 {[%clk 0:02:49.8]} 11. dxe5 {[%clk
0:02:50.8]} 11... Qxd1 {[%clk 0:02:43.6]} 12. Rxd1 {[%clk 0:02:51.7]} 12... Ng4
{[%clk 0:02:39.2]} 13. Bf4 {[%clk 0:01:37]} 13... Bc5 {[%clk 0:02:37.7]} 14. Rf1
{[%clk 0:01:21.9]} 14... e3 {[%clk 0:02:31.9]} 15. fxe3 {[%clk 0:01:12.1]} 15...
Nxe3 {[%clk 0:02:28.8]} 16. Bxe3 {[%clk 0:01:08]} 16... Bxe3+ {[%clk 0:02:29.7]}
17. Kh1 {[%clk 0:01:08.3]} 17... Bb7 {[%clk 0:02:19]} 18. Na3 {[%clk 0:01:06.8]}
18... c5 {[%clk 0:02:08.4]} 19. Rae1 {[%clk 0:00:47.5]} 19... Bg5 {[%clk
0:02:08.3]} 20. Bc2 {[%clk 0:00:29.6]} 20... Rae8 {[%clk 0:01:54.8]} 21. Bf5
{[%clk 0:00:17.7]} 21... g6 {[%clk 0:01:40.5]} 22. Bg4 {[%clk 0:00:16.8]} 22...
Re7 {[%clk 0:01:40.6]} 23. Nc2 {[%clk 0:00:15.9]} 23... Rfe8 {[%clk 0:01:39.5]}
24. e6 {[%clk 0:00:15.4]} 24... f5 {[%clk 0:01:37.6]} 25. Bf3 {[%clk 0:00:03.7]}
25... Bxf3 {[%clk 0:01:37.6]} 26. Rxf3 {[%clk 0:00:04.6]} 26... Rxe6 {[%clk
0:01:38.2]} 27. Rxe6 {[%clk 0:00:05.1]} 27... Rxe6 {[%clk 0:01:39.1]} 28. h3
{[%clk 0:00:04.7]} 28... Re2 {[%clk 0:01:38.3]} 29. Na3 {[%clk 0:00:01.1]} 29...
Rxb2 {[%clk 0:01:38.1]} 0-1

[Event "Early-Titled-Tuesday-Blitz-April-02-2024"]
[Site "Chess.com"]
[Date "2024.04.02"]
[Round "7"]
[White "Mops_2004"]
[Black "Beca95"]
[Result "0-1"]
[WhiteElo "2777"]
[BlackElo "2945"]
[TimeControl "180+1"]
[EndTime "9:15:51 PDT"]
[Termination "Beca95 won by resignation"]

1. Nf3 {[%clk 0:03:00.9]} 1... d5 {[%clk 0:02:59.1]} 2. g3 {[%clk 0:03:00.7]}
2... Bg4 {[%clk 0:02:59.1]} 3. Bg2 {[%clk 0:03:01.1]} 3... e6 {[%clk 0:02:58.8]}
4. h3 {[%clk 0:03:01.3]} 4... Bxf3 {[%clk 0:02:58.7]} 5. Bxf3 {[%clk 0:03:02.2]}
5... Nc6 {[%clk 0:02:59.1]} 6. d4 {[%clk 0:02:51.5]} 6... Qd7 {[%clk 0:02:56.2]}
7. c3 {[%clk 0:02:34.2]} 7... f5 {[%clk 0:02:56]} 8. c4 {[%clk 0:02:27.2]} 8...
dxc4 {[%clk 0:02:53.7]} 9. O-O {[%clk 0:02:14.1]} 9... Nf6 {[%clk 0:02:52.7]}
10. e3 {[%clk 0:02:04.6]} 10... e5 {[%clk 0:02:22.7]} 11. dxe5 {[%clk
0:01:30.9]} 11... Nxe5 {[%clk 0:02:22.1]} 12. Bxb7 {[%clk 0:01:30.2]} 12... Rb8
{[%clk 0:02:19.2]} 13. Bg2 {[%clk 0:01:26.6]} 13... Bd6 {[%clk 0:02:13.8]} 14.
Qc2 {[%clk 0:01:23.2]} 14... h5 {[%clk 0:02:11.6]} 15. h4 {[%clk 0:01:09.7]}
15... g5 {[%clk 0:02:09.7]} 16. hxg5 {[%clk 0:01:10]} 16... Nfg4 {[%clk
0:02:09.7]} 17. f3 {[%clk 0:01:02.2]} 17... Nd3 {[%clk 0:02:09]} 18. fxg4 {[%clk
0:00:55.2]} 18... hxg4 {[%clk 0:02:08.8]} 19. Qxc4 {[%clk 0:00:52.8]} 19... Ne5
{[%clk 0:02:01.4]} 20. Qc2 {[%clk 0:00:45]} 20... Qh7 {[%clk 0:01:29.2]} 21. Bd5
{[%clk 0:00:23.4]} 21... Nf3+ {[%clk 0:01:23.5]} 22. Bxf3 {[%clk 0:00:20.4]}
22... gxf3 {[%clk 0:01:23.4]} 23. Qc6+ {[%clk 0:00:08.4]} 23... Ke7 {[%clk
0:01:23.4]} 24. Kf2 {[%clk 0:00:06.7]} 24... Qh2+ {[%clk 0:01:21]} 0-1

[Event "Early-Titled-Tuesday-Blitz-April-02-2024"]
[Site "Chess.com"]
[Date "2024.04.02"]
[Round "7"]
[White "xasid81"]
[Black "ExchangeAB"]
[Result "0-1"]
[WhiteElo "2620"]
[BlackElo "2479"]
[TimeControl "180+1"]
[EndTime "9:15:54 PDT"]
[Termination "ExchangeAB won by resignation"]

1. g3 {[%clk 0:03:00.9]} 1... d5 {[%clk 0:02:55.8]} 2. Bg2 {[%clk 0:03:00.2]}
2... e5 {[%clk 0:02:52.3]} 3. b3 {[%clk 0:03:00.8]} 3... c6 {[%clk 0:02:51.9]}
4. Bb2 {[%clk 0:03:01.2]} 4... Bd6 {[%clk 0:02:52.6]} 5. d3 {[%clk 0:03:01.5]}
5... Ne7 {[%clk 0:02:52.6]} 6. e3 {[%clk 0:03:01.8]} 6... O-O {[%clk 0:02:52.6]}
7. Ne2 {[%clk 0:03:02.4]} 7... Bg4 {[%clk 0:02:51.7]} 8. h3 {[%clk 0:03:02.7]}
8... Bh5 {[%clk 0:02:51.8]} 9. Nd2 {[%clk 0:03:01.9]} 9... Nd7 {[%clk
0:02:51.5]} 10. O-O {[%clk 0:02:59.4]} 10... f6 {[%clk 0:02:49.3]} 11. g4 {[%clk
0:02:59.7]} 11... Bf7 {[%clk 0:02:49]} 12. f4 {[%clk 0:02:59.8]} 12... a5 {[%clk
0:02:47.4]} 13. f5 {[%clk 0:02:58.7]} 13... b5 {[%clk 0:02:45.8]} 14. c4 {[%clk
0:02:58.4]} 14... a4 {[%clk 0:02:44.1]} 15. cxb5 {[%clk 0:02:56.9]} 15... cxb5
{[%clk 0:02:43.8]} 16. bxa4 {[%clk 0:02:52.7]} 16... Qb6 {[%clk 0:02:42.2]} 17.
d4 {[%clk 0:02:49.3]} 17... Rxa4 {[%clk 0:02:40]} 18. Nc3 {[%clk 0:02:46.7]}
18... Ra7 {[%clk 0:02:33.5]} 19. Nb3 {[%clk 0:02:42.8]} 19... b4 {[%clk
0:02:08.2]} 20. Ne2 {[%clk 0:02:42.2]} 20... g6 {[%clk 0:02:04.9]} 21. fxg6
{[%clk 0:02:36.3]} 21... hxg6 {[%clk 0:02:04.2]} 22. e4 {[%clk 0:02:34.7]} 22...
dxe4 {[%clk 0:02:00.8]} 23. Bxe4 {[%clk 0:02:33.2]} 23... Be6 {[%clk 0:01:44.1]}
24. Kh1 {[%clk 0:02:30.8]} 24... f5 {[%clk 0:01:40.5]} 25. gxf5 {[%clk
0:02:26.8]} 25... gxf5 {[%clk 0:01:41.4]} 26. d5 {[%clk 0:02:20.3]} 26... Nf6
{[%clk 0:01:26.2]} 27. dxe6 {[%clk 0:02:14.5]} 27... Nxe4 {[%clk 0:01:24.2]} 28.
Qd3 {[%clk 0:01:49]} 28... Ng6 {[%clk 0:01:10.4]} 29. Qf3 {[%clk 0:01:32.8]}
29... Rg7 {[%clk 0:01:00.6]} 30. Rg1 {[%clk 0:01:27.9]} 30... Nf2+ {[%clk
0:00:51.1]} 31. Kh2 {[%clk 0:01:21]} 31... e4+ {[%clk 0:00:49.8]} 32. Qg3 {[%clk
0:01:21.6]} 32... Bxg3+ {[%clk 0:00:49.5]} 33. Rxg3 {[%clk 0:01:22.5]} 33... f4
{[%clk 0:00:46.2]} 34. Rg5 {[%clk 0:01:17.1]} 34... f3 {[%clk 0:00:37.6]} 35.
Bxg7 {[%clk 0:01:13.3]} 35... Kxg7 {[%clk 0:00:38.5]} 36. Nf4 {[%clk 0:01:10.8]}
36... Rxf4 {[%clk 0:00:36.9]} 0-1

[Event "Early-Titled-Tuesday-Blitz-April-02-2024"]
[Site "Chess.com"]
[Date "2024.04.02"]
[Round "7"]
[White "zverr1"]
[Black "Tugrik1969"]
[Result "1-0"]
[WhiteElo "2562"]
[BlackElo "2544"]
[TimeControl "180+1"]
[EndTime "9:15:57 PDT"]
[Termination "zverr1 won by resignation"]

1. e4 {[%clk 0:03:00.9]} 1... c5 {[%clk 0:02:59.7]} 2. Nf3 {[%clk 0:02:57.7]}
2... d6 {[%clk 0:03:00.2]} 3. Nc3 {[%clk 0:02:55]} 3... Nc6 {[%clk 0:02:58.6]}
4. Bb5 {[%clk 0:02:53.1]} 4... Bd7 {[%clk 0:02:56.2]} 5. d4 {[%clk 0:02:51.6]}
5... cxd4 {[%clk 0:02:54.7]} 6. Nxd4 {[%clk 0:02:52]} 6... Nf6 {[%clk
0:02:51.3]} 7. O-O {[%clk 0:02:51.4]} 7... g6 {[%clk 0:02:50.5]} 8. h3 {[%clk
0:02:39.5]} 8... Bg7 {[%clk 0:02:50.3]} 9. Be3 {[%clk 0:02:38.3]} 9... O-O
{[%clk 0:02:50.3]} 10. Be2 {[%clk 0:02:33.6]} 10... a6 {[%clk 0:02:43.3]} 11. a4
{[%clk 0:02:29.1]} 11... Qc7 {[%clk 0:02:37.5]} 12. f4 {[%clk 0:02:06.3]} 12...
Nxd4 {[%clk 0:02:31.3]} 13. Bxd4 {[%clk 0:02:04.9]} 13... Bc6 {[%clk 0:02:30.7]}
14. Bf3 {[%clk 0:02:04.9]} 14... b5 {[%clk 0:02:09.8]} 15. axb5 {[%clk
0:01:59.3]} 15... axb5 {[%clk 0:02:10.7]} 16. Rxa8 {[%clk 0:01:59.6]} 16... Rxa8
{[%clk 0:02:10]} 17. e5 {[%clk 0:01:55.9]} 17... dxe5 {[%clk 0:02:01]} 18. fxe5
{[%clk 0:01:17.8]} 18... Ne8 {[%clk 0:01:38]} 19. e6 {[%clk 0:00:32.6]} 19...
Bxf3 {[%clk 0:01:05.3]} 20. exf7+ {[%clk 0:00:24.5]} 20... Kxf7 {[%clk
0:01:02.2]} 21. Qxf3+ {[%clk 0:00:20.5]} 21... Bf6 {[%clk 0:00:55.3]} 22. Qxa8
{[%clk 0:00:18.4]} 1-0

[Event "Early-Titled-Tuesday-Blitz-April-02-2024"]
[Site "Chess.com"]
[Date "2024.04.02"]
[Round "7"]
[White "chito89"]
[Black "Gennady_Kozlov"]
[Result "0-1"]
[WhiteElo "2787"]
[BlackElo "2640"]
[TimeControl "180+1"]
[EndTime "9:15:58 PDT"]
[Termination "Gennady_Kozlov won on time"]

1. e4 {[%clk 0:02:56.9]} 1... e6 {[%clk 0:02:58.9]} 2. d4 {[%clk 0:02:55.8]}
2... d5 {[%clk 0:02:57.7]} 3. e5 {[%clk 0:02:56.2]} 3... c5 {[%clk 0:02:56.7]}
4. c3 {[%clk 0:02:56.5]} 4... Nc6 {[%clk 0:02:56.5]} 5. Nf3 {[%clk 0:02:56.8]}
5... Bd7 {[%clk 0:02:55.9]} 6. Bd3 {[%clk 0:02:52.5]} 6... Qb6 {[%clk
0:02:55.9]} 7. O-O {[%clk 0:02:50.6]} 7... cxd4 {[%clk 0:02:55.5]} 8. h4 {[%clk
0:02:51]} 8... dxc3 {[%clk 0:02:54]} 9. Nxc3 {[%clk 0:02:44.6]} 9... Nge7 {[%clk
0:02:48]} 10. Be3 {[%clk 0:02:40.4]} 10... d4 {[%clk 0:02:44.7]} 11. Na4 {[%clk
0:02:38.1]} 11... Qa5 {[%clk 0:02:33.2]} 12. Bd2 {[%clk 0:02:36.7]} 12... Qc7
{[%clk 0:02:32.1]} 13. Rc1 {[%clk 0:02:32.1]} 13... Qb8 {[%clk 0:02:31.4]} 14.
Nc5 {[%clk 0:02:30.5]} 14... Nd5 {[%clk 0:02:29.8]} 15. Nxd7 {[%clk 0:02:29.9]}
15... Kxd7 {[%clk 0:02:29.3]} 16. Be4 {[%clk 0:02:05.9]} 16... Be7 {[%clk
0:02:14.8]} 17. Qb3 {[%clk 0:01:54.5]} 17... Rd8 {[%clk 0:01:48]} 18. Bxd5
{[%clk 0:01:37]} 18... exd5 {[%clk 0:01:48.9]} 19. Qxd5+ {[%clk 0:01:37.3]}
19... Ke8 {[%clk 0:01:42.2]} 20. Qe4 {[%clk 0:01:38.2]} 20... g6 {[%clk
0:01:38.2]} 21. Ng5 {[%clk 0:01:20.3]} 21... Qxe5 {[%clk 0:01:07.9]} 0-1